bitfinex-derivatives/quotes_BNBF0:USTF0_20250807
["timestamp","ask_amount","ask_price","bid_price","bid_amount"]
[1754605136439,0.83967719,784.36,783.83,0.907]
[1754605136639,0.83967719,784.35,783.83,0.907]
[1754605136834,0.83967719,784.34,783.83,0.907]
[1754605137040,0.83967719,784.33,783.83,0.907]
[1754605137237,0.83967719,784.32,783.83,0.907]
[1754605137437,0.83967719,784.31,783.83,0.907]
[1754605137636,0.83967719,784.3,783.83,0.907]
[1754605137841,0.83967719,784.29,783.83,0.907]
[1754605138040,0.83967719,784.28,783.83,0.907]
[1754605138340,0.83967719,784.27,783.83,0.907]
[1754605138535,0.83967719,784.26,783.83,0.907]
[1754605138737,0.83967719,784.25,783.83,0.907]
[1754605138936,0.83967719,784.24,783.83,0.907]
[1754605139136,0.83967719,784.23,783.83,0.907]
[1754605139341,0.83967719,784.22,783.83,0.907]
[1754605139541,0.83967719,784.21,783.83,0.907]
[1754605139742,0.22191259,784.38,783.83,0.907]
[1754605139942,0.8396103,784.37,783.83,0.907]
[1754605140139,0.8396103,784.36,783.83,0.907]
[1754605140444,0.8396103,784.35,783.83,0.907]
[1754605140744,0.8396103,784.34,783.83,0.907]
[1754605140941,0.8396103,784.33,783.83,0.907]
[1754605141137,0.8396103,784.32,783.83,0.907]
[1754605141343,0.8396103,784.31,783.83,0.907]
[1754605141540,0.8396103,784.3,783.83,0.907]
[1754605141743,0.8396103,784.29,783.83,0.907]
[1754605141939,0.8396103,784.28,783.83,0.907]
[1754605142143,0.8396103,784.27,783.83,0.907]
[1754605142338,0.8396103,784.26,783.83,0.907]
[1754605142543,0.8396103,784.25,783.83,0.907]
[1754605142743,0.8396103,784.24,783.83,0.907]
[1754605143043,0.8396103,784.23,783.83,0.907]
[1754605143241,0.8396103,784.22,783.83,0.907]
[1754605143446,0.8396103,784.21,783.83,0.907]
[1754605143643,0.8396103,784.2,783.83,0.907]
[1754605143843,0.8396103,784.19,783.83,0.907]
[1754605144042,0.8396103,784.18,783.83,0.907]
[1754605144247,0.22191259,784.38,783.83,0.907]
[1754605144445,0.83951756,784.37,783.83,0.907]
[1754605144644,0.83951756,784.36,783.83,0.907]
[1754605144841,0.83951756,784.35,783.83,0.907]
[1754605145146,0.83951756,784.34,783.83,0.907]
[1754605145442,0.83951756,784.33,783.83,0.907]
[1754605145646,0.83951756,784.32,783.83,0.907]
[1754605145842,0.83951756,784.31,783.83,0.907]
[1754605146146,1.69828681,784.3,783.83,0.907]
[1754605146345,0.83954729,784.29,783.83,0.907]
[1754605146542,0.83954729,784.28,783.83,0.907]
[1754605147346,1.69828681,784.28,783.83,0.907]
[1754605147642,0.83954729,784.27,783.83,0.907]
[1754605147840,0.83954729,784.26,783.83,0.907]
[1754605148141,0.83954729,784.25,783.83,0.907]
[1754605148341,0.83954729,784.24,783.83,0.907]
[1754605148545,0.83954729,784.23,783.83,0.907]
[1754605148743,0.83954729,784.22,783.83,0.907]
[1754605148941,0.83954729,784.21,783.83,0.907]
[1754605149245,0.83954729,784.2,783.83,0.907]
[1754605149545,0.83954729,784.19,783.83,0.907]
[1754605149746,0.83954729,784.18,783.83,0.907]
[1754605149942,0.83954729,784.17,783.83,0.907]
[1754605150142,0.83954729,784.16,783.83,0.907]
[1754605150342,0.83954729,784.15,783.83,0.907]
[1754605150646,0.83954729,784.14,783.83,0.907]
[1754605150845,0.83954729,784.13,783.83,0.907]
[1754605151144,0.83954729,784.12,783.83,0.907]
[1754605151444,0.83954729,784.11,783.83,0.907]
[1754605151644,0.83954729,784.1,783.83,0.907]
[1754605151844,0.83954729,784.09,783.83,0.907]
[1754605152048,0.83954729,784.08,783.83,0.907]
[1754605152345,0.83954729,784.07,783.83,0.907]
[1754605152544,0.22191259,784.38,783.83,0.907]
[1754605152545,0.83954729,784.06,783.83,0.907]
[1754605152849,0.83954729,784.05,783.83,0.907]
[1754605153049,0.83954729,784.04,783.83,0.907]
[1754605153244,0.83954729,784.03,783.83,0.907]
[1754605153444,0.83954729,784.02,783.83,0.907]
[1754605153645,0.83954729,784.01,783.83,0.907]
[1754605153845,0.83954729,784.0,783.83,0.907]
[1754605154046,0.83954729,783.99,783.83,0.907]
[1754605154245,0.85873952,784.25,783.83,0.907]
[1754605154546,0.83989411,784.24,783.83,0.907]
[1754605154748,0.83989411,784.23,783.83,0.907]
[1754605154948,0.83989411,784.22,783.83,0.907]
[1754605155149,0.83989411,784.21,783.83,0.907]
[1754605155349,0.83989411,784.2,783.83,0.907]
[1754605155549,0.83989411,784.19,783.84,0.879]
[1754605155751,0.83989411,784.18,783.84,0.879]
[1754605156047,0.83989411,784.17,783.84,0.879]
[1754605156350,0.83989411,784.16,783.84,0.879]
[1754605156546,0.83989411,784.15,783.84,0.879]
[1754605156748,0.83989411,784.14,783.84,0.879]
[1754605156947,0.83989411,784.13,783.84,0.879]
[1754605157149,0.83989411,784.12,783.84,0.879]
[1754605157352,0.22191259,784.38,783.84,0.879]
[1754605157547,0.83985928,784.37,783.84,0.879]
[1754605157750,0.83985928,784.36,783.84,0.879]
[1754605157945,0.83985928,784.35,783.84,0.879]
[1754605158250,0.83985928,784.34,783.84,0.879]
[1754605158551,0.22191259,784.38,783.84,0.879]
[1754605158552,0.83985928,784.33,783.84,0.879]
[1754605158746,0.83985928,784.32,783.84,0.879]
[1754605159046,0.83985928,784.31,783.84,0.879]
[1754605159247,0.83985928,784.3,783.84,0.879]
[1754605159444,0.22191259,784.38,783.84,0.879]
[1754605159445,0.83985928,784.29,783.84,0.879]
[1754605159651,0.83985928,784.28,783.84,0.879]
[1754605159851,0.83985928,784.27,783.84,0.879]
[1754605160150,0.83985928,784.26,783.84,0.879]
[1754605160352,0.83985928,784.25,783.84,0.879]
[1754605160651,0.22191259,784.38,783.84,0.879]
[1754605160852,0.83974383,784.37,783.84,0.879]
[1754605161151,0.83974383,784.36,783.84,0.879]
[1754605161452,0.83974383,784.35,783.84,0.879]
[1754605161649,0.22191259,784.38,783.84,0.879]
[1754605161650,0.83974383,784.34,783.84,0.879]
[1754605161853,0.83974383,784.33,783.84,0.879]
[1754605162054,0.83974383,784.32,783.84,0.879]
[1754605162350,0.83974383,784.31,783.84,0.879]
[1754605162548,0.83974383,784.3,783.84,0.879]
[1754605162750,0.83974383,784.29,783.84,0.879]
[1754605162953,0.83974383,784.28,783.84,0.879]
[1754605163150,0.83974383,784.27,783.84,0.879]
[1754605163351,0.83974383,784.26,783.84,0.879]
[1754605163553,0.83974383,784.25,783.84,0.879]
[1754605163751,0.22191259,784.38,783.84,0.879]
[1754605163952,0.83983092,784.37,783.84,0.879]
[1754605164156,0.83983092,784.36,783.84,0.879]
[1754605164456,0.83983092,784.35,783.84,0.879]
[1754605164656,0.83983092,784.34,783.84,0.879]
[1754605164857,0.83983092,784.33,783.84,0.879]
[1754605165056,0.83983092,784.32,783.84,0.879]
[1754605165358,0.83983092,784.31,783.84,0.879]
[1754605165556,0.83983092,784.3,783.84,0.879]
[1754605165756,0.83983092,784.29,783.84,0.879]
[1754605166056,0.83983092,784.28,783.84,0.879]
[1754605166356,0.83983092,784.27,783.84,0.879]
[1754605166553,0.83983092,784.26,783.84,0.879]
[1754605166757,0.83983092,784.25,783.84,0.879]
[1754605166958,0.83983092,784.24,783.84,0.879]
[1754605167153,0.83983092,784.23,783.84,0.879]
[1754605167356,0.83983092,784.22,783.84,0.879]
[1754605167656,0.83983092,784.21,783.84,0.879]
[1754605167852,0.83983092,784.2,783.84,0.879]
[1754605168156,0.83983092,784.19,783.84,0.879]
[1754605168354,0.83983092,784.18,783.84,0.879]
[1754605168556,0.85873952,784.37,783.59,0.775]
[1754605168557,0.83983092,784.17,783.59,0.775]
[1754605168752,0.83983092,784.16,783.59,0.775]
[1754605169053,0.83983092,784.15,783.59,0.775]
[1754605169252,0.83983092,784.14,783.59,0.775]
[1754605169452,0.83983092,784.13,783.59,0.775]
[1754605169656,0.83983092,784.12,783.59,0.775]
[1754605169956,0.83983092,784.11,783.59,0.775]
[1754605170253,0.85873952,784.37,783.59,0.775]
[1754605170453,0.84009035,784.36,783.59,0.775]
[1754605170652,0.84009035,784.35,783.59,0.775]
[1754605170853,1.69882987,784.34,783.59,0.775]
[1754605171051,0.84009035,784.33,783.59,0.775]
[1754605171454,0.85873952,784.32,783.6,0.634]
[1754605171755,0.84009035,784.31,783.6,0.634]
[1754605171955,0.85873952,784.28,783.6,0.634]
[1754605172157,0.84009035,784.27,783.6,0.634]
[1754605172358,0.22196213,784.17,783.6,0.634]
[1754605172556,0.84009035,784.16,783.6,0.634]
[1754605176261,0.84009035,784.16,783.61,0.85873952]
[1754605176861,0.84009035,784.16,783.6,1.49273952]
[1754605178861,0.84009035,784.16,783.6,0.634]
[1754605179061,0.84009035,784.16,783.6,1.49273952]
[1754605180967,0.84009035,784.16,783.6,0.634]
[1754605183569,0.84009035,784.16,783.6,1.49273952]
[1754605183966,0.84009035,784.16,783.61,0.85873952]
[1754605184166,0.84009035,784.16,783.63,0.85873952]
[1754605185272,0.22196213,784.17,783.63,0.85873952]
[1754605186373,0.84091914,784.16,783.63,0.85873952]
[1754605186573,0.84091914,784.15,783.64,0.85873952]
[1754605186772,0.84091914,784.14,783.63,0.85873952]
[1754605187073,0.84091914,784.13,783.63,0.85873952]
[1754605187272,0.84091914,784.12,783.64,0.85873952]
[1754605187473,0.84091914,784.11,783.63,0.85873952]
[1754605187673,0.84091914,784.1,783.65,0.711]
[1754605187874,0.84091914,784.09,783.65,0.711]
[1754605188173,0.84091914,784.08,783.65,0.711]
[1754605188373,0.84091914,784.07,783.65,0.711]
[1754605188569,0.84091914,784.06,783.65,0.711]
[1754605188769,0.22196213,784.17,783.65,0.711]
[1754605188968,0.84108229,784.16,783.65,0.711]
[1754605189175,0.84108229,784.15,783.65,0.711]
[1754605189372,0.84108229,784.14,783.65,0.711]
[1754605189676,0.84108229,784.13,783.65,0.711]
[1754605189879,0.84108229,784.12,783.65,0.711]
[1754605190072,0.84108229,784.11,783.65,0.711]
[1754605190276,0.84108229,784.1,783.65,0.711]
[1754605190573,0.84108229,784.09,783.65,0.711]
[1754605190772,0.84108229,784.08,783.65,0.711]
[1754605190973,0.84108229,784.07,783.65,0.711]
[1754605191177,0.84108229,784.06,783.65,0.711]
[1754605191478,0.84108229,784.05,783.65,0.711]
[1754605191679,0.84108229,784.04,783.65,0.711]
[1754605191877,0.84108229,784.03,783.65,0.711]
[1754605192077,0.84108229,784.02,783.65,0.711]
[1754605192273,0.84108229,784.01,783.65,0.711]
[1754605192473,0.84108229,784.0,783.65,0.711]
[1754605192677,0.84108229,783.99,783.65,0.711]
[1754605192878,0.22196213,784.17,783.65,0.711]
[1754605193078,0.84148984,784.16,783.65,0.711]
[1754605193274,0.84148984,784.15,783.65,0.711]
[1754605193573,0.84148984,784.14,783.65,0.711]
[1754605193778,0.84148984,784.13,783.65,0.711]
[1754605194075,0.84148984,784.12,783.65,0.711]
[1754605194275,0.84148984,784.11,783.65,0.711]
[1754605194474,0.84148984,784.1,783.65,0.711]
[1754605194677,0.84148984,784.09,783.65,0.711]
[1754605194978,0.84148984,784.08,783.65,0.711]
[1754605195179,0.84148984,784.07,783.65,0.711]
[1754605195381,0.84148984,784.06,783.65,0.711]
[1754605195675,0.84148984,784.05,783.65,0.711]
[1754605195979,0.84148984,784.04,783.65,0.711]
[1754605196179,0.84148984,784.03,783.65,0.711]
[1754605196376,0.84148984,784.02,783.65,0.711]
[1754605196679,0.84148984,784.01,783.65,0.711]
[1754605196879,0.84148984,784.0,783.65,0.711]
[1754605197079,0.84148984,783.99,783.65,0.711]
[1754605197281,0.84148984,783.98,783.65,0.711]
[1754605197576,0.22196213,784.17,783.65,0.711]
[1754605197780,0.84156036,784.16,783.65,0.711]
[1754605197981,0.22196213,784.17,783.65,0.711]
[1754605197982,0.84156036,784.15,783.65,0.711]
[1754605198180,0.84156036,784.14,783.65,0.711]
[1754605198376,0.84156036,784.13,783.65,0.711]
[1754605198581,0.84156036,784.12,783.65,0.711]
[1754605198782,0.84156036,784.11,783.65,0.711]
[1754605198980,0.84156036,784.1,783.65,0.711]
[1754605199281,0.84156036,784.09,783.65,0.711]
[1754605199580,0.84156036,784.08,783.65,0.711]
[1754605199879,0.84156036,784.07,783.65,0.711]
[1754605200178,0.84156036,784.06,783.65,0.711]
[1754605200378,0.84156036,784.05,783.65,0.711]
[1754605200575,0.84156036,784.04,783.65,0.711]
[1754605200778,0.84156036,784.03,783.65,0.711]
[1754605200978,0.84156036,784.02,783.65,0.711]
[1754605201179,0.84156036,784.01,783.65,0.711]
[1754605201477,0.84156036,784.0,783.65,0.711]
[1754605201681,0.84156036,783.99,783.65,0.711]
[1754605201981,0.84156036,783.98,783.65,0.711]
[1754605202282,0.84156036,783.97,783.65,0.711]
[1754605202482,0.84156036,783.96,783.65,0.711]
[1754605202777,0.84156036,783.95,783.65,0.711]
[1754605202977,0.84156036,783.94,783.65,0.711]
[1754605203182,0.84156036,783.93,783.65,0.711]
[1754605203482,0.84156036,783.92,783.65,0.711]
[1754605203682,0.84156036,783.91,783.65,0.711]
[1754605203977,0.85942475,784.16,783.65,0.711]
[1754605204179,1.70075983,784.15,783.65,0.711]
[1754605204377,0.84133508,784.14,783.65,0.711]
[1754605204577,0.84133508,784.13,783.65,0.711]
[1754605204777,0.84133508,784.12,783.65,0.711]
[1754605204979,0.84133508,784.11,783.65,0.711]
[1754605205280,0.84133508,784.1,783.65,0.711]
[1754605205483,0.84133508,784.09,783.65,0.711]
[1754605205679,0.84133508,784.08,783.65,0.711]
[1754605205985,0.84133508,784.07,783.65,0.711]
[1754605206183,0.84133508,784.06,783.65,0.711]
[1754605206382,0.84133508,784.05,783.65,0.711]
[1754605206583,0.84133508,784.04,783.65,0.711]
[1754605206882,0.84133508,784.03,783.65,0.711]
[1754605207084,0.84133508,784.02,783.65,0.711]
[1754605207285,0.84133508,784.01,783.65,0.711]
[1754605207485,0.84133508,784.0,783.65,0.711]
[1754605207784,0.84133508,783.99,783.65,0.711]
[1754605207982,0.84133508,783.98,783.65,0.711]
[1754605208187,0.84133508,783.97,783.65,0.711]
[1754605208381,0.84133508,783.96,783.65,0.711]
[1754605208582,0.84133508,783.95,783.65,0.711]
[1754605208882,0.22196213,784.17,783.65,0.711]
[1754605209081,0.84133198,784.16,783.65,0.711]
[1754605209381,0.84133198,784.15,783.65,0.711]
[1754605209585,0.84133198,784.14,783.65,0.711]
[1754605209783,0.84133198,784.13,783.65,0.711]
[1754605209985,0.84133198,784.12,783.65,0.711]
[1754605210185,0.84133198,784.11,783.65,0.711]
[1754605210385,0.84133198,784.1,783.65,0.711]
[1754605210687,0.84133198,784.09,783.65,0.711]
[1754605210881,0.84133198,784.08,783.65,0.711]
[1754605211185,0.84133198,784.07,783.65,0.711]
[1754605211487,0.84133198,784.06,783.65,0.711]
[1754605211679,0.84133198,784.05,783.65,0.711]
[1754605211884,0.84133198,784.04,783.65,0.711]
[1754605212082,0.22196213,784.17,783.65,0.711]
[1754605212083,0.84133198,784.03,783.65,0.711]
[1754605212381,0.84133198,784.02,783.65,0.711]
[1754605212585,0.84133198,784.01,783.65,0.711]
[1754605212886,0.84133198,784.0,783.66,0.711]
[1754605213086,0.84133198,783.99,783.66,0.711]
[1754605213288,0.22196213,784.17,783.66,0.711]
[1754605213482,0.84122153,784.16,783.66,0.711]
[1754605213683,0.84122153,784.15,783.66,0.711]
[1754605213887,0.84122153,784.14,783.66,0.711]
[1754605214185,0.84122153,784.13,783.66,0.711]
[1754605214382,0.84123846,784.12,783.66,0.711]
[1754605214586,0.84123846,784.11,783.66,0.711]
[1754605214789,0.84123846,784.1,783.66,0.711]
[1754605214984,0.84123846,784.09,783.66,0.711]
[1754605215183,0.84123846,784.08,783.66,0.711]
[1754605215383,0.84123846,784.07,783.66,0.711]
[1754605215587,0.84123846,784.06,783.66,0.711]
[1754605215783,0.84123846,784.05,783.66,0.711]
[1754605215986,0.84123846,784.04,783.66,0.711]
[1754605216184,0.84123846,784.03,783.66,0.711]
[1754605216385,0.84123846,784.02,783.66,0.711]
[1754605216588,0.84123846,784.01,783.66,0.711]
[1754605216786,0.84123846,784.0,783.66,0.711]
[1754605217089,0.84123846,783.99,783.66,0.711]
[1754605217290,0.84123846,783.98,783.66,0.711]
[1754605217490,0.84134107,783.97,783.66,0.711]
[1754605217786,0.84134107,783.96,783.67,0.822]
[1754605218084,0.84134107,783.95,783.67,0.822]
[1754605218287,0.84134107,783.94,783.67,0.822]
[1754605218492,0.84134107,783.93,783.67,0.822]
[1754605218692,1.08138688,784.17,783.67,0.822]
[1754605218888,0.84135647,784.16,783.67,0.822]
[1754605219090,0.84135647,784.15,783.67,0.822]
[1754605219294,0.84135647,784.14,783.67,0.822]
[1754605219489,0.84135647,784.13,783.67,0.822]
[1754605219689,0.84135647,784.12,783.67,0.822]
[1754605219890,0.84135647,784.11,783.67,0.822]
[1754605220088,0.84135647,784.1,783.67,0.822]
[1754605220290,0.22196213,784.17,783.67,0.822]
[1754605220291,0.84135647,784.09,783.67,0.822]
[1754605220490,0.84135647,784.08,783.67,0.822]
[1754605220689,0.84135647,784.07,783.67,0.822]
[1754605220990,0.84135647,784.06,783.67,0.822]
[1754605221192,0.84135647,784.05,783.67,0.822]
[1754605221391,0.84135647,784.04,783.67,0.822]
[1754605221588,0.84135647,784.03,783.67,0.822]
[1754605221793,0.84135647,784.02,783.67,0.822]
[1754605221993,0.84135647,784.01,783.67,0.822]
[1754605222194,0.84135647,784.0,783.67,0.822]
[1754605222397,0.84135647,783.99,783.67,0.822]
[1754605222691,0.84135647,783.98,783.67,0.822]
[1754605222992,0.85942475,784.22,783.67,0.822]
[1754605223195,0.84131498,784.21,783.71,0.85942475]
[1754605223495,0.84131498,784.21,783.67,0.822]
[1754605223496,0.84131498,784.2,783.7,0.85942475]
[1754605223691,0.84131498,784.19,783.72,0.85942475]
[1754605223891,0.22195505,784.32,783.72,0.85942475]
[1754605223892,0.84131498,784.18,783.72,0.85942475]
[1754605224092,0.84131498,784.17,783.72,0.85942475]
[1754605224292,0.84131498,784.16,783.74,0.85942475]
[1754605224597,0.84131498,784.15,783.73,0.85942475]
[1754605224797,0.84131498,784.14,783.73,0.85942475]
[1754605225094,0.84131498,784.13,783.73,0.85942475]
[1754605225298,0.84131498,784.12,783.72,0.85942475]
[1754605225498,0.84131498,784.11,783.72,0.85942475]
[1754605225696,0.84131498,784.1,783.72,0.85942475]
[1754605225905,0.84131498,784.09,783.71,0.85942475]
[1754605226097,0.84131498,784.08,783.71,0.85942475]
[1754605226298,0.84131498,784.07,783.71,0.85942475]
[1754605226496,0.22195505,784.32,783.7,0.85942475]
[1754605226497,0.84131498,784.06,783.7,0.85942475]
[1754605226702,0.22195505,784.32,783.7,0.85942475]
[1754605226903,0.84116126,784.31,783.7,0.85942475]
[1754605227103,0.84116126,784.3,783.7,0.85942475]
[1754605227302,0.84116126,784.29,783.7,0.85942475]
[1754605227503,0.84116126,784.28,783.69,0.85942475]
[1754605227702,0.84116126,784.27,783.69,0.85942475]
[1754605227900,0.84116126,784.26,783.69,0.85942475]
[1754605228198,0.84116126,784.25,783.69,0.85942475]
[1754605228398,0.22195505,784.32,783.67,0.822]
[1754605228399,0.84116126,784.24,783.68,0.85942475]
[1754605228604,0.84116126,784.23,783.69,0.85942475]
[1754605228805,0.84116126,784.22,783.68,0.85942475]
[1754605229005,0.22195505,784.32,783.69,0.85942475]
[1754605229006,0.84116126,784.21,783.69,0.85942475]
[1754605229301,0.84116126,784.2,783.69,0.85942475]
[1754605229504,0.84116126,784.19,783.68,0.85942475]
[1754605229700,0.22195505,784.32,783.67,0.822]
[1754605229701,0.84116126,784.18,783.67,0.822]
[1754605229904,0.84116126,784.17,783.67,0.822]
[1754605230106,0.84116126,784.16,783.67,0.822]
[1754605230405,0.84116126,784.15,783.67,0.822]
[1754605230605,0.84116126,784.14,783.67,0.822]
[1754605230805,0.84116126,784.13,783.67,0.822]
[1754605231010,0.84116126,784.12,783.67,0.822]
[1754605231206,0.84116126,784.11,783.67,0.822]
[1754605231408,0.84224739,784.1,783.67,0.822]
[1754605231604,0.22195505,784.32,783.67,0.822]
[1754605231811,0.84224739,784.31,783.67,0.822]
[1754605232011,0.84224739,784.3,783.67,0.822]
[1754605232206,0.84224739,784.29,783.67,0.822]
[1754605232409,0.84224739,784.28,783.67,0.822]
[1754605232606,0.84224739,784.27,783.67,0.822]
[1754605232808,0.84224739,784.26,783.67,0.822]
[1754605233011,0.84224739,784.25,783.67,0.822]
[1754605233209,0.84224739,784.24,783.67,0.822]
[1754605233407,0.84224739,784.23,783.67,0.822]
[1754605233612,0.84224739,784.22,783.67,0.822]
[1754605233810,0.84224739,784.21,783.67,0.822]
[1754605234108,0.84224739,784.2,783.68,0.978]
[1754605234308,0.84224739,784.19,783.68,0.978]
[1754605234512,0.22195505,784.32,783.68,0.978]
[1754605234513,0.84224739,784.18,783.68,0.978]
[1754605234708,0.84224739,784.17,783.68,0.978]
[1754605234909,0.84224739,784.16,783.68,0.978]
[1754605235214,0.84224739,784.15,783.68,0.978]
[1754605235414,0.84224739,784.14,783.68,0.978]
[1754605235612,0.84224739,784.13,783.68,0.978]
[1754605235813,0.84224739,784.12,783.68,0.978]
[1754605236014,0.22195505,784.32,783.68,0.978]
[1754605236210,0.84211417,784.31,783.68,0.978]
[1754605236415,0.84211417,784.3,783.68,0.978]
[1754605236714,0.84211417,784.29,783.68,0.978]
[1754605236911,0.84211417,784.28,783.68,0.978]
[1754605237112,0.84211417,784.27,783.68,0.978]
[1754605237316,0.84211417,784.26,783.68,0.978]
[1754605237510,0.84211417,784.25,783.68,0.978]
[1754605237715,0.84211417,784.24,783.68,0.978]
[1754605237913,0.22195505,784.32,783.68,0.978]
[1754605238114,0.84194953,784.31,783.68,0.978]
[1754605238413,0.84194953,784.3,783.68,0.978]
[1754605238613,0.84194953,784.29,783.68,0.978]
[1754605238818,0.84194953,784.28,783.68,0.978]
[1754605239118,0.84194953,784.27,783.68,0.978]
[1754605239316,0.84194953,784.26,783.68,0.978]
[1754605239516,0.84194953,784.25,783.68,0.978]
[1754605239717,0.22195505,784.32,783.68,0.978]
[1754605239914,0.8416634,784.31,783.68,0.978]
[1754605240117,0.8416634,784.3,783.68,0.978]
[1754605240316,0.22195505,784.32,783.68,0.978]
[1754605240317,0.8416634,784.29,783.68,0.978]
[1754605240514,0.8416634,784.28,783.68,0.978]
[1754605240712,0.22195505,784.32,783.68,0.978]
[1754605240713,0.8416634,784.27,783.68,0.978]
[1754605240917,0.8416634,784.26,783.68,0.978]
[1754605241120,0.8416634,784.25,783.68,0.978]
[1754605241318,0.22195505,784.32,783.68,0.978]
[1754605241319,0.8416634,784.24,783.68,0.978]
[1754605241519,0.8416634,784.23,783.68,0.978]
[1754605241721,0.8416634,784.22,783.68,0.978]
[1754605241921,0.8416634,784.21,783.68,0.978]
[1754605242118,0.8416634,784.2,783.68,0.978]
[1754605242322,0.8416634,784.19,783.69,0.724]
[1754605242520,0.8416634,784.18,783.69,0.724]
[1754605242720,0.8416634,784.17,783.69,0.724]
[1754605242919,0.8416634,784.16,783.69,0.724]
[1754605243119,0.8416634,784.15,783.69,0.724]
[1754605243425,0.8416634,784.14,783.69,0.724]
[1754605243624,0.22195505,784.32,783.69,0.724]
[1754605243625,0.8416634,784.13,783.69,0.724]
[1754605243822,0.8416634,784.12,783.69,0.724]
[1754605244126,0.8416634,784.11,783.69,0.724]
[1754605244321,0.8416634,784.1,783.69,0.724]
[1754605244526,0.22195505,784.32,783.69,0.724]
[1754605244822,0.84163691,784.31,783.69,0.724]
[1754605245022,0.84163691,784.3,783.69,0.724]
[1754605245221,0.84163691,784.29,783.69,0.724]
[1754605245521,0.84163691,784.28,783.69,0.724]
[1754605245725,0.84163691,784.27,783.69,0.724]
[1754605245925,0.22195505,784.32,783.69,0.724]
[1754605245926,0.84163691,784.26,783.69,0.724]
[1754605246125,0.84163691,784.25,783.69,0.724]
[1754605246322,0.84163691,784.24,783.69,0.724]
[1754605246524,0.84163691,784.23,783.69,0.724]
[1754605247026,0.84168347,784.22,783.69,0.724]
[1754605247329,0.84168347,784.21,783.69,0.724]
[1754605247624,0.84168347,784.2,783.69,0.724]
[1754605247825,0.84168347,784.19,783.69,0.724]
[1754605248027,0.84168347,784.18,783.69,0.724]
[1754605248225,0.84168347,784.17,783.69,0.724]
[1754605248429,0.84168347,784.16,783.69,0.724]
[1754605248625,0.84168347,784.15,783.69,0.724]
[1754605248926,0.84168347,784.14,783.69,0.724]
[1754605249225,0.84168347,784.13,783.69,0.724]
[1754605249432,0.84168347,784.12,783.69,0.724]
[1754605249629,0.84168347,784.11,783.69,0.724]
[1754605249926,0.84168347,784.1,783.69,0.724]
[1754605250127,0.84168347,784.09,783.69,0.724]
[1754605250324,0.84168347,784.08,783.69,0.724]
[1754605250523,0.84168347,784.07,783.69,0.724]
[1754605250723,0.22195505,784.32,783.69,0.724]
[1754605250926,0.84170352,784.31,783.69,0.724]
[1754605251127,0.84170352,784.3,783.69,0.724]
[1754605251328,1.69981713,784.29,783.69,0.724]
[1754605251526,0.85811361,784.24,783.69,0.724]
[1754605251730,0.84170352,784.23,783.69,0.724]
[1754605252228,1.69981713,784.23,783.69,0.724]
[1754605252530,0.84170352,784.22,783.69,0.724]
[1754605253526,0.84170352,784.21,783.69,0.724]
[1754605253732,0.84170352,784.2,783.69,0.724]
[1754605253929,0.84170352,784.19,783.69,0.724]
[1754605254128,0.84170352,784.18,783.69,0.724]
[1754605254327,0.84170352,784.17,783.69,0.724]
[1754605254527,0.84170352,784.16,783.69,0.724]
[1754605254726,0.84170352,784.15,783.69,0.724]
[1754605254926,0.84170352,784.14,783.69,0.724]
[1754605255131,0.84170352,784.13,783.69,0.724]
[1754605255331,0.84170352,784.12,783.69,0.724]
[1754605255628,0.84170352,784.11,783.69,0.724]
[1754605255831,0.84170352,784.1,783.69,0.724]
[1754605256129,0.84170352,784.09,783.69,0.724]
[1754605256331,0.84170352,784.08,783.69,0.724]